fUSD/lending_fUSD_20240118
["ID","MTS","AMOUNT","RATE_DAILY","PERIOD"]
[312017169,1705551034820,-500.0,0.00021917,2]
[312017170,1705551034830,-500.0,0.00021917,2]
[312017171,1705551034839,-500.0,0.00021917,2]
[312017172,1705551034849,-943.16,0.00021917,2]
[312017173,1705551034858,-354.63487598,0.00021917,2]
[312017174,1705551034868,-500.0,0.00021917,2]
[312017175,1705551034877,-500.0,0.00021917,2]
[312017176,1705551034886,-502.58796689,0.00021917,2]
[312017177,1705551034896,-500.0,0.00021917,2]
[312017178,1705551034905,-500.0,0.00021917,2]
[312017179,1705551034914,-500.0,0.00021917,2]
[312017180,1705551034923,-159.26438231,0.00021917,2]
[312017181,1705551034932,-463.19853971,0.00021917,2]
[312017182,1705551034942,-500.0,0.00021917,2]
[312017183,1705551034951,-500.0,0.00021917,2]
[312017184,1705551034961,-500.0,0.00021917,2]
[312017185,1705551034970,-500.0,0.00021917,2]
[312017186,1705551034980,-500.0,0.00021917,2]
[312017187,1705551034989,-502.22034759,0.00021917,2]
[312017188,1705551034999,-496.72428852,0.00021917,2]
[312017189,1705551035008,-500.0,0.00021917,2]
[312017190,1705551035018,-500.0,0.00021917,2]
[312017191,1705551035027,-500.0,0.00021917,2]
[312017192,1705551035038,-500.0,0.00021917,2]
[312017193,1705551035048,-500.0,0.00021917,2]
[312017194,1705551035058,-500.0,0.00021917,2]
[312017195,1705551035067,-500.0,0.00021917,2]
[312017196,1705551035076,-500.0,0.00021917,2]
[312017197,1705551035086,-500.0,0.00021917,2]
[312017198,1705551035096,-500.0,0.00021917,2]
[312017199,1705551035105,-500.0,0.00021917,2]
[312017200,1705551035114,-500.0,0.00021917,2]
[312017201,1705551035133,-500.0,0.00021917,2]
[312017202,1705551035145,-519.88948996,0.00021917,2]
[312017203,1705551035156,-500.0,0.00021917,2]
[312017204,1705551035166,-505.07757283,0.00021917,2]
[312017205,1705551035175,-584.42589569,0.00021917,2]
[312017206,1705551035185,-514.37608761,0.00021917,2]
[312017207,1705551035194,-507.56448686,0.00021917,2]
[312017208,1705551035204,-500.0,0.00021917,2]
[312017209,1705551035214,-500.0,0.00021917,2]
[312017210,1705551035223,-500.0,0.00021917,2]
[312017211,1705551035233,-500.0,0.00021917,2]
[312017212,1705551035243,-500.0,0.00021917,2]
[312017213,1705551035253,-500.0,0.00021917,2]
[312017214,1705551035263,-500.0,0.00021917,2]
[312017215,1705551035273,-500.0,0.00021917,2]
[312017216,1705551035284,-500.0,0.00021917,2]
[312017217,1705551035293,-500.0,0.00021917,2]
[312017218,1705551035302,-616.02616826,0.00021917,2]
[312017219,1705551035311,-500.0,0.00021917,2]
[312017220,1705551035321,-500.0,0.00021917,2]
[312017221,1705551035330,-510.3934984,0.00021917,2]
[312017222,1705551035340,-500.0,0.00021917,2]
[312017223,1705551035350,-500.0,0.00021917,2]
[312017224,1705551035359,-500.0,0.00021917,2]
[312017225,1705551035369,-500.0,0.00021917,2]
[312017226,1705551035379,-500.0,0.00021917,2]
[312017227,1705551035389,-507.74540755,0.00021917,2]
[312017228,1705551035398,-500.0,0.00021917,2]
[312017229,1705551035408,-460.13763604,0.00021917,2]
[312017230,1705551035417,-500.0,0.00021917,2]
[312017231,1705551035427,-500.0,0.00021917,2]
[312017232,1705551035437,-500.0,0.00021917,2]
[312017233,1705551035447,-500.0,0.00021917,2]
[312017234,1705551035457,-428.54,0.00021917,7]
[312017235,1705551035467,-500.0,0.00021917,2]
[312017236,1705551035476,-482.35142721,0.00021917,2]
[312017237,1705551035503,-23.46777911,0.00021917,2]
[312017238,1705551035514,-500.0,0.00021917,2]
[312017239,1705551035524,-668.56,0.00021917,2]
[312017240,1705551035537,-500.0,0.00021917,2]
[312017241,1705551035546,-117.4856357,0.00021917,2]
[312017242,1705551035561,-382.5143643,0.00021917,2]
[312017243,1705551035570,-509.83725222,0.00021917,2]
[312017244,1705551035580,-500.0,0.00021917,2]
[312017245,1705551035589,-500.0,0.00021917,2]
[312017246,1705551035599,-500.0,0.00021917,2]
[312017247,1705551035609,-503.56795422,0.00021917,2]
[312017248,1705551035620,-500.0,0.00021917,2]
[312017249,1705551035630,-500.0,0.00021917,2]
[312017250,1705551035640,-500.0,0.00021917,2]
[312017251,1705551035650,-500.0,0.00021917,2]
[312017252,1705551035660,-294.56701445,0.00021917,2]
[312017253,1705551038345,-206.0,0.00019347,2]
[312017254,1705551038355,-437.1294748,0.00021817,2]
[312017255,1705551038366,-529.05901152,0.00021817,2]
[312017256,1705551038378,-4033.81151368,0.00021817,2]
[312017257,1705551038388,-221.95035791,0.00021917,2]
[312017258,1705551038398,-500.0,0.00021917,2]
[312017259,1705551038407,-309.77903482,0.00021917,2]
[312017260,1705551038419,-3.7382141,0.00021917,2]
[312017261,1705551038428,-500.0,0.00021917,2]
[312017262,1705551038438,-500.0,0.00021917,2]
[312017263,1705551038447,-87.3211865,0.00021917,2]
[312017264,1705551038478,-412.6788135,0.00021917,2]
[312017265,1705551038487,-500.0,0.00021917,2]
[312017266,1705551038496,-500.0,0.00021917,2]
[312017267,1705551038506,-500.0,0.00021917,2]
[312017268,1705551038517,-500.0,0.00021917,2]
[312017269,1705551038527,-500.0,0.00021917,2]
[312017270,1705551038538,-516.98247776,0.00021917,2]
[312017271,1705551038547,-500.0,0.00021917,2]
[312017272,1705551038557,-511.69871785,0.00021917,2]
[312017273,1705551038567,-500.0,0.00021917,2]
[312017274,1705551038576,-258.04399919,0.00021917,2]
[312017275,1705551038589,-241.95600081,0.00021917,2]
[312017276,1705551038599,-553.66840506,0.00021917,2]
[312017277,1705551038609,-500.0,0.00021917,2]
[312017278,1705551038618,-500.0,0.00021917,2]
[312017279,1705551038628,-500.0,0.00021917,2]
[312017280,1705551038637,-500.0,0.00021917,2]
[312017281,1705551038647,-296.53543897,0.00021917,2]
[312017282,1705551038657,-500.0,0.00021917,2]
[312017283,1705551038666,-507.52861792,0.00021917,2]
[312017284,1705551038676,-3578.20174058,0.00021917,2]
[312017285,1705551038688,-1108.35745822,0.00021917,2]
[312017286,1705551038739,-161.3608012,0.00021917,2]
[312017287,1705551038748,-500.0,0.00021917,2]
[312017288,1705551038757,-500.0,0.00021917,2]
[312017289,1705551038767,-500.0,0.00021917,2]
[312017290,1705551038776,-500.0,0.00021917,2]
[312017291,1705551038787,-500.0,0.00021917,2]
[312017292,1705551038797,-511.40983026,0.00021917,2]
[312017293,1705551038806,-331.08236596,0.00021917,2]
[312017295,1705551038816,-500.0,0.00021917,2]
[312017297,1705551038825,-500.0,0.00021917,2]
[312017299,1705551038835,-500.0,0.00021917,2]
[312017301,1705551038844,-500.0,0.00021917,2]
[312017304,1705551038854,-500.0,0.00021917,2]
[312017305,1705551038863,-500.0,0.00021917,2]
[312017307,1705551038872,-500.0,0.00021917,2]
[312017309,1705551038882,-500.0,0.00021917,2]
[312017312,1705551038891,-500.0,0.00021917,2]
[312017314,1705551038901,-500.0,0.00021917,2]
[312017315,1705551038909,-500.0,0.00021917,2]
[312017318,1705551038919,-500.0,0.00021917,2]
[312017319,1705551038928,-504.85405151,0.00021917,2]
[312017322,1705551038937,-500.0,0.00021917,2]
[312017324,1705551038947,-201.91409277,0.00021917,2]
[312017326,1705551038960,-298.08590723,0.00021917,2]
[312017328,1705551038969,-500.0,0.00021917,2]
[312017330,1705551038979,-534.19653783,0.00021917,2]
[312017332,1705551038988,-500.0,0.00021917,2]
[312017334,1705551038997,-500.0,0.00021917,2]
[312017336,1705551039007,-500.0,0.00021917,2]
[312017338,1705551039016,-500.0,0.00021917,2]
[312017340,1705551039026,-500.0,0.00021917,2]
[312017342,1705551039036,-500.0,0.00021917,2]
[312017345,1705551039050,-500.0,0.00021917,2]
[312017347,1705551039060,-500.0,0.00021917,2]
[312017349,1705551039069,-500.0,0.00021917,2]
[312017351,1705551039079,-500.0,0.00021917,2]
[312017353,1705551039089,-500.0,0.00021917,2]
[312017355,1705551039099,-500.0,0.00021917,2]
[312017357,1705551039109,-500.0,0.00021917,2]
[312017359,1705551039118,-622.86558693,0.00021917,2]
[312017361,1705551039128,-500.0,0.00021917,2]
[312017363,1705551039137,-500.0,0.00021917,2]
[312017365,1705551039147,-480.35269097,0.00021917,2]
[312017367,1705551039157,-500.0,0.00021917,2]
[312017369,1705551039166,-500.0,0.00021917,2]
[312017371,1705551039176,-500.0,0.00021917,2]
[312017373,1705551039185,-565.11450744,0.00021917,2]
[312017375,1705551039195,-500.0,0.00021917,2]
[312017377,1705551039205,-500.0,0.00021917,2]
[312017379,1705551039215,-500.0,0.00021917,2]
[312017381,1705551039224,-500.0,0.00021917,2]
[312017383,1705551039233,-521.05093664,0.00021917,2]
[312017385,1705551039242,-500.0,0.00021917,2]
[312017387,1705551039251,-500.0,0.00021917,2]
[312017389,1705551039261,-500.0,0.00021917,2]
[312017391,1705551039270,-500.0,0.00021917,2]
[312017393,1705551039279,-500.0,0.00021917,2]
[312017395,1705551039291,-307.43830695,0.00021917,2]
[312017397,1705551039300,-636.64718869,0.00021917,2]
[312017400,1705551039312,-150.0,0.00021917,2]
[312017402,1705551039322,-500.0,0.00021917,2]
[312017404,1705551039332,-500.0,0.00021917,2]
[312017406,1705551039341,-5021.18155179,0.00021917,2]
[312017408,1705551039351,-500.0,0.00021917,2]
[312017410,1705551039361,-500.0,0.00021917,2]
[312017412,1705551039370,-202.16075046,0.00021917,2]
[312017636,1705551041598,-310.44712576,0.00021917,2]
[312017638,1705551041609,-459.98120897,0.00021917,2]
[312017640,1705551041620,-40.01879103,0.00021917,2]
[312017642,1705551041630,-470.11191778,0.00021917,2]
[312017645,1705551041641,-29.88808222,0.00021917,2]
[312017647,1705551041650,-508.90624955,0.00021917,2]
[312017649,1705551041660,-500.0,0.00021917,2]
[312017651,1705551041669,-500.0,0.00021917,2]
[312017653,1705551041678,-500.0,0.00021917,2]
[312017655,1705551041688,-502.98755815,0.00021917,2]
[312017657,1705551041697,-500.0,0.00021917,2]
[312017659,1705551041706,-500.0,0.00021917,2]
[312017661,1705551041715,-314.71811008,0.00021917,2]
[312017667,1705551041767,-185.28188992,0.00021917,2]
[312017669,1705551041777,-113.83099388,0.00021917,2]
[312017671,1705551041790,-272.65594049,0.00021917,2]
[312017674,1705551041801,-113.51306563,0.00021917,2]
[312017676,1705551041810,-500.0,0.00021917,2]
[312017678,1705551041820,-500.0,0.00021917,2]
[312017680,1705551041829,-500.0,0.00021917,2]
[312017682,1705551041839,-508.16611186,0.00021917,2]
[312017684,1705551041848,-500.0,0.00021917,2]
[312017686,1705551041858,-500.0,0.00021917,2]
[312017688,1705551041867,-500.0,0.00021917,2]
[312017690,1705551041877,-500.0,0.00021917,2]
[312017692,1705551041886,-500.0,0.00021917,2]
[312017694,1705551041895,-500.0,0.00021917,2]
[312017696,1705551041904,-500.0,0.00021917,2]
[312017705,1705551041976,-584.29949226,0.00021917,2]
[312017707,1705551041986,-500.0,0.00021917,2]
[312017709,1705551041995,-500.0,0.00021917,2]
[312017711,1705551042004,-500.0,0.00021917,2]
[312017713,1705551042013,-500.0,0.00021917,2]
[312017715,1705551042023,-500.0,0.00021917,2]
[312017717,1705551042033,-506.73450381,0.00021917,2]
[312017719,1705551042042,-643.25879874,0.00021917,2]
[312017721,1705551042051,-640.03,0.00021917,2]
[312017723,1705551042060,-500.0,0.00021917,2]
[312017725,1705551042070,-500.0,0.00021917,2]
[312017727,1705551042079,-500.0,0.00021917,2]
[312017729,1705551042088,-773.35,0.00021917,2]
[312017731,1705551042097,-500.0,0.00021917,2]
[312017733,1705551042106,-557.47,0.00021917,2]
[312017735,1705551042116,-500.0,0.00021917,2]
[312017737,1705551042125,-500.0,0.00021917,2]
[312017739,1705551042134,-500.0,0.00021917,2]
[312017741,1705551042143,-500.0,0.00021917,2]
[312017743,1705551042152,-500.0,0.00021917,2]
[312017745,1705551042161,-526.7953996,0.00021917,2]
[312017747,1705551042170,-500.0,0.00021917,2]
[312017749,1705551042179,-507.12,0.00021917,2]
[312017752,1705551042189,-500.0,0.00021917,2]
[312017754,1705551042198,-500.0,0.00021917,2]
[312017756,1705551042211,-500.0,0.00021917,2]
[312017758,1705551042220,-500.0,0.00021917,2]
[312017760,1705551042229,-500.0,0.00021917,2]
[312017762,1705551042239,-500.0,0.00021917,2]
[312017764,1705551042248,-500.0,0.00021917,2]
[312017766,1705551042257,-78.9006281,0.00021917,2]
[312017882,1705551043397,-313.09470256,0.00021917,2]
[312017889,1705551043457,-108.00466934,0.00021917,2]
[312017891,1705551043467,-500.0,0.00021917,2]
[312017893,1705551043477,-500.0,0.00021917,2]
[312017895,1705551043486,-500.0,0.00021917,2]
[312017897,1705551043495,-500.0,0.00021917,2]
[312017899,1705551043505,-500.0,0.00021917,2]
[312017901,1705551043514,-517.46614607,0.00021917,2]
[312017903,1705551043526,-168.98151455,0.00021917,2]
[312017909,1705551043571,-331.01848545,0.00021917,2]
[312017911,1705551043580,-333.81357529,0.00021917,2]
[312017917,1705551043633,-166.18642471,0.00021917,2]
[312017919,1705551043642,-500.0,0.00021917,2]
[312017921,1705551043652,-195.86866041,0.00021917,2]
[312017923,1705551043661,-500.0,0.00021917,2]
[312017925,1705551043670,-500.0,0.00021917,2]
[312017927,1705551043679,-243.49491488,0.00021917,2]
[312017929,1705551043691,-238.0513381,0.00021917,2]
[312017931,1705551043701,-416.73977101,0.00021917,2]
[312017933,1705551043709,-500.0,0.00021917,2]
[312017935,1705551043719,-500.0,0.00021917,2]
[312017937,1705551043728,-500.0,0.00021917,2]
[312017939,1705551043737,-500.0,0.00021917,2]
[312017941,1705551043746,-501.05619614,0.00021917,2]
[312017943,1705551043755,-500.0,0.00021917,2]
[312017945,1705551043765,-500.0,0.00021917,2]
[312017947,1705551043774,-500.0,0.00021917,2]
[312017949,1705551043784,-500.0,0.00021917,2]
[312017952,1705551043794,-505.4409094,0.00021917,2]
[312017954,1705551043803,-500.0,0.00021917,2]
[312017956,1705551043812,-500.0,0.00021917,2]
[312017958,1705551043822,-166.12078604,0.00021917,2]
[312017960,1705551043831,-519.01160098,0.00021917,2]
[312017962,1705551043841,-467.024693,0.00021917,2]
[312018258,1705551046512,-32.975307,0.00021917,2]
[312018261,1705551046523,-528.71615479,0.00021917,2]
[312018264,1705551046535,-500.0,0.00021917,2]
[312018267,1705551046544,-500.0,0.00021917,2]
[312018270,1705551046553,-438.30853821,0.00021917,2]
[312018273,1705551046565,-53.101525,0.00021917,2]
[312018276,1705551046575,-292.14007497,0.00021917,2]
[312018279,1705551046586,-207.85992503,0.00021917,2]
[312018282,1705551046595,-377.62445557,0.00021917,2]
[312018299,1705551046671,-122.37554443,0.00021917,2]
[312018302,1705551046680,-500.0,0.00021917,2]
[312018305,1705551046689,-500.0,0.00021917,2]
[312018308,1705551046699,-117.38350251,0.00021917,2]
[312018506,1705551617789,5117.349,0.00025,30]
[312018528,1705552231537,-370.42818622,0.00018675,2]
[312018529,1705552231547,-732.0,0.00018676,2]
[312018530,1705552231557,-675.61,0.00018677,2]
[312018531,1705552231566,-161.293564,0.00020497,2]
[312018532,1705552231577,-18.47127429,0.00020497,2]
[312018533,1705552231591,-151.51,0.00020501,2]
[312018534,1705552231599,-1300.27,0.00020574,2]
[312018535,1705552231608,-697.6,0.00020597,2]
[312018536,1705552231617,-250.0,0.000206,2]
[312018537,1705552231630,-706.21,0.00020636,2]
[312018538,1705552231639,-155.88,0.00020664,2]
[312018539,1705552231648,-873.86064671,0.00020819,2]
[312018540,1705552231658,-161.91,0.00020878,2]
[312018541,1705552231667,-150.0,0.00020882,2]
[312018542,1705552231677,-302.4,0.000209,2]
[312018543,1705552231686,-161.77,0.00020928,2]
[312018544,1705552231695,-675.61,0.00020941,2]
[312018545,1705552231705,-250.0,0.000211,2]
[312018546,1705552231714,-154.01,0.00021167,2]
[312018547,1705552231723,-150.0,0.00021191,2]
[312018548,1705552231732,-179.76483827,0.00021211,2]
[312018549,1705552231742,-159.87,0.00021317,2]
[312018550,1705552231751,-151.51,0.00021321,2]
[312018551,1705552231760,-410.44,0.00021321,2]
[312018552,1705552232037,-98.05588884,0.00021429,2]
[312018553,1705552233854,-107.94411116,0.00021429,2]
[312018554,1705552233864,-270.49683167,0.00021481,2]
[312018555,1705552233916,-276.50316833,0.00021481,2]
[312018556,1705552233926,-150.0,0.00021481,2]
[312018557,1705552233935,-250.0,0.000216,2]
[312018558,1705552233945,-1300.27,0.00021602,2]
[312018559,1705552233955,-594.39004552,0.00021615,2]
[312018560,1705552233981,-111.81995448,0.00021615,2]
[312018561,1705552233990,-154.01,0.00021638,2]
[312018562,1705552233999,-14.17004552,0.00021739,2]
[312018563,1705552234011,-205.73350646,0.00021739,2]
[312018564,1705552234021,-900.0,0.000218,7]
[312018565,1705552234030,-250.0,0.000218,2]
[312018566,1705552234040,-2027.3296,0.00021817,2]
[312018567,1705552234049,-284.75068138,0.00021817,2]
[312018568,1705552234065,-1058.55591862,0.00021817,2]
[312018569,1705552234075,-171.78762555,0.00021817,2]
[312018570,1705552234086,-1900.0,0.000219,7]
[312018571,1705552234096,-43.33394981,0.00021915,3]
[312018646,1705552237547,-111.32387793,0.00021915,3]
[312018647,1705552237557,-2274.4341,0.00021915,2]
[312018648,1705552237566,-2613.39672478,0.00021915,2]
[312018649,1705552237604,-354.44740193,0.00021915,2]
[312018650,1705552237614,-525.42213153,0.00021915,2]
[312018651,1705552237623,-204.01256151,0.00021915,2]
[312018652,1705552237632,-258.53435244,0.00021916,2]
[312018653,1705552237641,-150.0,0.00021916,2]
[312018654,1705552237651,-513.92434459,0.00021917,2]
[312018655,1705552237661,-501.47445765,0.00021917,2]
[312018656,1705552237671,-500.0,0.00021917,2]
[312018657,1705552237680,-500.0,0.00021917,2]
[312018658,1705552237689,-500.0,0.00021917,2]
[312018659,1705552237698,-500.0,0.00021917,2]
[312018660,1705552237707,-500.0,0.00021917,2]
[312018661,1705552237716,-510.90435306,0.00021917,2]
[312018662,1705552237726,-500.0,0.00021917,2]
[312018663,1705552237735,-512.26670116,0.00021917,2]
[312018664,1705552237745,-500.0,0.00021917,2]
[312018665,1705552237756,-500.0,0.00021917,2]
[312018666,1705552237765,-500.0,0.00021917,2]
[312018667,1705552237777,-500.0,0.00021917,2]
[312018668,1705552237786,-500.0,0.00021917,2]
[312018669,1705552237795,-500.0,0.00021917,2]
[312018670,1705552237804,-500.0,0.00021917,2]
[312018671,1705552237813,-500.0,0.00021917,2]
[312018672,1705552237823,-514.08936801,0.00021917,2]
[312018673,1705552237831,-500.0,0.00021917,2]
[312018674,1705552237841,-500.0,0.00021917,2]
[312018675,1705552237851,-504.4146872,0.00021917,2]
[312018676,1705552237861,-500.0,0.00021917,2]
[312018677,1705552237870,-365.54241175,0.00021917,2]
[312018678,1705552237883,-500.0,0.00021917,2]
[312018679,1705552237893,-500.0,0.00021917,2]
[312018680,1705552237902,-500.0,0.00021917,2]
[312018681,1705552237912,-500.0,0.00021917,2]
[312018682,1705552237921,-500.0,0.00021917,2]
[312018683,1705552237930,-500.0,0.00021917,2]
[312018684,1705552237939,-500.0,0.00021917,2]
[312018685,1705552237948,-500.0,0.00021917,2]
[312018686,1705552237959,-500.0,0.00021917,10]
[312018687,1705552237968,-500.0,0.00021917,2]
[312018688,1705552237977,-500.0,0.00021917,2]
[312018689,1705552237986,-513.67904954,0.00021917,2]
[312018691,1705552237996,-505.93846135,0.00021917,2]
[312018693,1705552238005,-518.08805845,0.00021917,2]
[312018695,1705552238014,-500.0,0.00021917,2]
[312018697,1705552238023,-500.0,0.00021917,2]
[312018699,1705552238033,-500.0,0.00021917,2]
[312018701,1705552238043,-500.0,0.00021917,2]
[312018702,1705552238052,-500.0,0.00021917,2]
[312018703,1705552238061,-349.6198946,0.00021917,2]
[312018704,1705552238070,-500.0,0.00021917,2]
[312018705,1705552238080,-500.0,0.00021917,2]
[312018706,1705552238089,-500.0,0.00021917,2]
[312018707,1705552238098,-54.87682998,0.00021917,2]
[312018709,1705552238113,-848.98317002,0.00021917,2]
[312018710,1705552238123,-500.0,0.00021917,2]
[312018713,1705552238132,-504.32805105,0.00021917,2]
[312018716,1705552238141,-500.0,0.00021917,2]
[312018718,1705552238150,-518.06951708,0.00021917,2]
[312018721,1705552238159,-500.0,0.00021917,2]
[312018724,1705552238168,-300.0,0.00021917,2]
[312018726,1705552238178,-500.0,0.00021917,2]
[312018729,1705552238187,-500.0,0.00021917,2]
[312018731,1705552238196,-509.22548085,0.00021917,2]
[312018733,1705552238205,-500.0,0.00021917,2]
[312018735,1705552238215,-505.6557991,0.00021917,2]
[312018737,1705552238224,-500.0,0.00021917,2]
[312018739,1705552238234,-575.85449081,0.00021917,2]
[312018741,1705552238244,-308.6665726,0.00021917,2]
[312018743,1705552238253,-500.0,0.00021917,2]
[312018745,1705552238263,-500.0,0.00021917,2]
[312018747,1705552238272,-500.0,0.00021917,2]
[312018749,1705552238282,-500.0,0.00021917,2]
[312018751,1705552238291,-671.68,0.00021917,2]
[312018753,1705552238301,-505.8042363,0.00021917,2]
[312018755,1705552238310,-744.18317379,0.00021917,2]
[312018757,1705552238320,-503.54476326,0.00021917,2]
[312018759,1705552238329,-500.0,0.00021917,2]
[312018761,1705552238339,-500.0,0.00021917,2]
[312018763,1705552238349,-500.0,0.00021917,2]
[312018765,1705552238358,-486.24922422,0.00021917,2]
[312018767,1705552238367,-500.0,0.00021917,2]
[312018769,1705552238377,-500.0,0.00021917,2]
[312018771,1705552238386,-500.0,0.00021917,2]
[312018773,1705552238395,-500.0,0.00021917,2]
[312018775,1705552238405,-500.0,0.00021917,2]
[312018777,1705552238414,-500.0,0.00021917,2]
[312018779,1705552238423,-500.0,0.00021917,2]
[312018781,1705552238433,-500.0,0.00021917,2]
[312018783,1705552238441,-526.51782685,0.00021917,2]
[312018785,1705552238451,-500.0,0.00021917,2]
[312018787,1705552238460,-500.0,0.00021917,2]
[312018789,1705552238469,-500.0,0.00021917,2]
[312018791,1705552238478,-355.12544098,0.00021917,2]
[312018793,1705552238487,-500.0,0.00021917,2]
[312018795,1705552238497,-500.0,0.00021917,2]
[312018797,1705552238506,-500.0,0.00021917,2]
[312018799,1705552238515,-500.0,0.00021917,2]
[312018801,1705552238524,-500.0,0.00021917,2]
[312018803,1705552238533,-525.15774226,0.00021917,2]
[312018805,1705552238543,-500.0,0.00021917,2]
[312018807,1705552238552,-506.47473039,0.00021917,2]
[312018809,1705552238561,-500.0,0.00021917,2]
[312018811,1705552238570,-235.19570936,0.00021917,2]
[312018813,1705552238580,-500.0,0.00021917,2]
[312018815,1705552238590,-500.0,0.00021917,2]
[312018817,1705552238599,-624.05301202,0.00021917,2]
[312018819,1705552238608,-509.64801709,0.00021917,2]
[312018821,1705552238617,-500.0,0.00021917,2]
[312018823,1705552238626,-500.0,0.00021917,2]
[312018825,1705552238635,-500.0,0.00021917,2]
[312018827,1705552238644,-508.73427969,0.00021917,2]
[312018829,1705552238653,-532.52277216,0.00021917,2]
[312018831,1705552238662,-500.0,0.00021917,2]
[312018833,1705552238671,-448.98732697,0.00021917,2]
[312018835,1705552238680,-500.0,0.00021917,2]
[312018837,1705552238689,-500.0,0.00021917,2]
[312018839,1705552238698,-500.0,0.00021917,2]
[312018841,1705552238707,-500.0,0.00021917,2]
[312018843,1705552238716,-500.0,0.00021917,2]
[312018845,1705552238725,-500.0,0.00021917,2]
[312018847,1705552238734,-500.0,0.00021917,2]
[312018849,1705552238743,-551.24,0.00021917,2]
[312018852,1705552238760,-500.0,0.00021917,2]
[312018854,1705552238769,-500.0,0.00021917,2]
[312018856,1705552238778,-500.0,0.00021917,2]
[312018858,1705552238787,-500.0,0.00021917,2]
[312018860,1705552238796,-500.0,0.00021917,2]
[312018862,1705552238806,-500.0,0.00021917,2]
[312018864,1705552238816,-505.43116051,0.00021917,2]
[312018866,1705552238825,-500.0,0.00021917,2]
[312018868,1705552238836,-500.0,0.00021917,2]
[312018870,1705552238847,-500.0,0.00021917,2]
[312018871,1705552238856,-500.0,0.00021917,2]
[312018874,1705552238866,-500.0,0.00021917,2]
[312018876,1705552238887,-500.0,0.00021917,2]
[312018878,1705552238895,-564.68402316,0.00021917,2]
[312018880,1705552238904,-521.43517965,0.00021917,2]
[312018882,1705552238913,-500.0,0.00021917,2]
[312018884,1705552238926,-500.0,0.00021917,2]
[312018886,1705552238935,-500.0,0.00021917,2]
[312018888,1705552238944,-500.0,0.00021917,2]
[312018890,1705552238953,-516.5739633,0.00021917,2]
[312018892,1705552238962,-500.0,0.00021917,2]
[312018894,1705552238971,-500.0,0.00021917,2]
[312018896,1705552238980,-500.0,0.00021917,2]
[312018898,1705552238990,-500.0,0.00021917,2]
[312018900,1705552239000,-505.66456082,0.00021917,2]
[312018902,1705552239009,-500.0,0.00021917,2]
[312018904,1705552239018,-500.0,0.00021917,2]
[312018906,1705552239028,-500.0,0.00021917,2]
[312018908,1705552239037,-500.0,0.00021917,2]
[312018910,1705552239047,-500.0,0.00021917,2]
[312018912,1705552239056,-174.22542595,0.00021917,2]
[312018914,1705552239066,-500.0,0.00021917,2]
[312018916,1705552239075,-505.28835341,0.00021917,2]
[312018918,1705552239084,-507.46288957,0.00021917,2]
[312018920,1705552239092,-500.0,0.00021917,2]
[312018922,1705552239101,-500.0,0.00021917,2]
[312018924,1705552239111,-500.0,0.00021917,2]
[312018926,1705552239120,-519.57119514,0.00021917,2]
[312018928,1705552239130,-500.0,0.00021917,2]
[312018930,1705552239139,-500.0,0.00021917,2]
[312018932,1705552239151,-500.0,0.00021917,2]